fUST/lending_fUST_20250826
["ID","MTS","AMOUNT","RATE_DAILY","PERIOD"]
[381464764,1756223453018,-480.0,0.00041369,120]
[381464766,1756223453028,-151.0,0.00041369,120]
[381464768,1756223453038,-480.0,0.00041369,120]
[381464770,1756223453048,-680.6,0.00041369,120]
[381464772,1756223453058,-480.0,0.00041369,120]
[381464774,1756223453068,-480.0,0.00041369,120]
[381464776,1756223453077,-550.88,0.00041369,120]
[381464778,1756223453087,-1663.56,0.00041369,120]
[381464780,1756223453098,-480.0,0.00041369,120]
[381464782,1756223453107,-480.0,0.00041369,120]
[381464784,1756223453118,-706.32,0.00041369,120]
[381464785,1756223453127,-480.0,0.00041369,120]
[381464787,1756223453138,-480.0,0.00041369,120]
[381464789,1756223453148,-480.0,0.00041369,120]
[381464791,1756223453158,-362.43592436,0.00041369,120]
[381464818,1756223453433,-196.49407564,0.00041369,120]
[381464820,1756223453443,-480.0,0.00041369,120]
[381464822,1756223453452,-480.0,0.00041369,120]
[381464824,1756223453462,-480.0,0.00041369,120]
[381464826,1756223453471,-480.0,0.00041369,120]
[381464828,1756223453481,-480.0,0.00041369,120]
[381464830,1756223453490,-480.0,0.00041369,120]
[381464832,1756223453500,-480.0,0.00041369,120]
[381464834,1756223453510,-779.59,0.00041369,120]
[381464836,1756223453519,-837.28,0.00041369,120]
[381464838,1756223453528,-480.0,0.00041369,120]
[381464840,1756223453538,-929.13,0.00041369,120]
[381464842,1756223453548,-981.62,0.00041369,120]
[381464844,1756223453557,-591.41682199,0.00041369,120]
[381464846,1756223453566,-480.0,0.00041369,120]
[381464848,1756223453576,-480.0,0.00041369,120]
[381464850,1756223453585,-480.0,0.00041369,120]
[381464852,1756223453595,-480.0,0.00041369,120]
[381464854,1756223453605,-801.2,0.00041369,120]
[381464856,1756223453614,-480.0,0.00041369,120]
[381464858,1756223453624,-932.3,0.00041369,120]
[381464860,1756223453633,-530.05,0.00041369,120]
[381464862,1756223453643,-2164.0,0.00041369,120]
[381464864,1756223453652,-388.89,0.00041369,120]
[381464866,1756223453662,-480.0,0.00041369,120]
[381464868,1756223453671,-552.37,0.00041369,120]
[381464870,1756223453681,-736.23,0.00041369,120]
[381464872,1756223453690,-480.0,0.00041369,120]
[381464874,1756223453700,-509.27,0.00041369,120]
[381464876,1756223453709,-14329.44,0.00041369,120]
[381464877,1756223453718,-480.0,0.00041369,120]
[381464879,1756223453728,-493.85,0.00041369,120]
[381464881,1756223453739,-491.73,0.00041369,120]
[381464883,1756223453750,-480.0,0.00041369,120]
[381464885,1756223453761,-480.0,0.00041369,120]
[381464887,1756223453771,-151.0,0.00041369,120]
[381464889,1756223453780,-480.0,0.00041369,120]
[381464891,1756223453790,-480.0,0.00041369,120]
[381464893,1756223453801,-480.0,0.00041369,120]
[381464895,1756223453810,-480.0,0.00041369,120]
[381464898,1756223453825,-480.0,0.00041369,120]
[381464900,1756223453835,-1286.08,0.00041369,120]
[381464901,1756223453845,-480.0,0.00041369,120]
[381464903,1756223453854,-1402.18,0.00041369,120]
[381464905,1756223453863,-151.0,0.00041369,120]
[381464907,1756223453873,-480.0,0.00041369,120]
[381464909,1756223453882,-524.91,0.00041369,120]
[381464911,1756223453891,-480.0,0.00041369,120]
[381464913,1756223453901,-480.0,0.00041369,120]
[381464915,1756223453911,-3055.89,0.00041369,120]
[381464917,1756223453920,-480.0,0.00041369,120]
[381464919,1756223453932,-171.63521075,0.00041369,120]
[381464921,1756223453942,-480.0,0.00041369,120]
[381464923,1756223453952,-480.0,0.00041369,120]
[381464925,1756223453961,-1105.58,0.00041369,120]
[381464927,1756223453971,-792.44,0.00041369,120]
[381464929,1756223453980,-480.0,0.00041369,120]
[381464931,1756223453990,-666.93,0.00041369,120]
[381464933,1756223454000,-1027.38,0.00041369,120]
[381464935,1756223454012,-480.0,0.00041369,120]
[381464937,1756223454022,-674.71,0.00041369,120]
[381464939,1756223454031,-151.0,0.00041369,120]
[381464941,1756223454041,-480.0,0.00041369,120]
[381464943,1756223454051,-151.0,0.00041369,120]
[381464945,1756223454060,-598.66,0.00041369,120]
[381464947,1756223454070,-533.2,0.00041369,120]
[381464949,1756223454079,-480.0,0.00041369,120]
[381464951,1756223454089,-611.56,0.00041369,120]
[381464953,1756223454098,-692.85,0.00041369,120]
[381464955,1756223454108,-480.0,0.00041369,120]
[381464957,1756223454118,-648.22,0.00041369,120]
[381464959,1756223454127,-480.0,0.00041369,120]
[381464961,1756223454137,-480.0,0.00041369,7]
[381464963,1756223454146,-151.0,0.00041369,15]
[381464965,1756223454156,-480.0,0.00041369,120]
[381464967,1756223454166,-609.67,0.00041369,120]
[381464968,1756223454175,-480.0,0.00041369,120]
[381464971,1756223454185,-480.0,0.00041369,120]
[381464972,1756223454195,-564.17,0.00041369,120]
[381464974,1756223454204,-934.48,0.00041369,120]
[381464976,1756223454213,-11243.58,0.00041369,120]
[381464978,1756223454223,-897.02,0.00041369,120]
[381464980,1756223454232,-480.0,0.00041369,120]
[381464982,1756223454242,-549.24,0.00041369,20]
[381464984,1756223454251,-715.79,0.00041369,120]
[381464986,1756223454262,-1180.15,0.00041369,120]
[381464988,1756223454272,-480.0,0.00041369,120]
[381464990,1756223454281,-1393.75,0.00041369,120]
[381464992,1756223454291,-480.0,0.00041369,120]
[381464994,1756223454301,-559.02,0.00041369,120]
[381464996,1756223454310,-266.296,0.00041369,120]
[381464998,1756223454320,-480.0,0.00041369,120]
[381465000,1756223454329,-480.0,0.00041369,120]
[381465002,1756223454338,-914.29,0.00041369,120]
[381465004,1756223454348,-480.0,0.00041369,120]
[381465006,1756223454358,-2133.76,0.00041369,120]
[381465008,1756223454367,-480.0,0.00041369,120]
[381465010,1756223454376,-480.0,0.00041369,120]
[381465012,1756223454386,-480.0,0.00041369,120]
[381465014,1756223454395,-925.77,0.00041369,120]
[381465015,1756223454404,-480.0,0.00041369,120]
[381465017,1756223454413,-1192.62,0.00041369,120]
[381465019,1756223454423,-480.0,0.00041369,120]
[381465021,1756223454432,-480.0,0.00041369,120]
[381465023,1756223454441,-480.0,0.00041369,120]
[381465025,1756223454451,-480.0,0.00041369,120]
[381465027,1756223454461,-494.16,0.00041369,120]
[381465029,1756223454470,-480.0,0.00041369,120]
[381465031,1756223454480,-574.1,0.00041369,120]
[381465033,1756223454489,-480.0,0.00041369,120]
[381465035,1756223454498,-627.0058338,0.00041369,120]
[381465037,1756223454507,-480.0,0.00041369,120]
[381465039,1756223454519,-151.0,0.00041369,120]
[381465041,1756223454529,-480.0,0.00041369,120]
[381465043,1756223454538,-480.0,0.00041369,120]
[381465045,1756223454547,-218.64355856,0.00041369,120]
[381465047,1756223454556,-200.0,0.00041369,120]
[381465049,1756223454566,-697.27,0.00041369,120]
[381465051,1756223454575,-1678.98,0.00041369,120]
[381465053,1756223454585,-480.0,0.00041369,120]
[381465055,1756223454594,-480.0,0.00041369,120]
[381465057,1756223454603,-2221.08,0.00041369,30]
[381465059,1756223454613,-649.55,0.00041369,120]
[381465061,1756223454622,-151.0,0.00041369,120]
[381465063,1756223454631,-930.63,0.00041369,120]
[381465065,1756223454641,-667.91,0.00041369,120]
[381465067,1756223454650,-480.0,0.00041369,120]
[381465069,1756223454659,-480.0,0.00041369,120]
[381465071,1756223454669,-1107.31,0.00041369,120]
[381465072,1756223454679,-869.59,0.00041369,120]
[381465075,1756223454688,-1013.15,0.00041369,120]
[381465077,1756223454699,-480.0,0.00041369,120]
[381465079,1756223454709,-480.0,0.00041369,120]
[381465081,1756223454719,-512.47,0.00041369,120]
[381465083,1756223454729,-586.85,0.00041369,120]
[381465085,1756223454740,-480.0,0.00041369,120]
[381465086,1756223454751,-636.19,0.00041369,120]
[381465094,1756223454820,-2262.59,0.00041369,120]
[381465096,1756223454831,-1238.46,0.00041369,120]
[381465098,1756223454840,-480.0,0.00041369,120]
[381465100,1756223454850,-480.0,0.00041369,120]
[381465101,1756223454859,-649.23,0.00041369,120]
[381465102,1756223454868,-480.0,0.00041369,120]
[381465103,1756223454878,-480.0,0.00041369,120]
[381465104,1756223454888,-600.69,0.00041369,120]
[381465105,1756223454897,-480.0,0.00041369,120]
[381465106,1756223454908,-480.0,0.00041369,120]
[381465107,1756223454918,-151.0,0.00041369,120]
[381465108,1756223454927,-480.0,0.00041369,120]
[381465109,1756223454936,-500.0,0.00041369,120]
[381465110,1756223454945,-610.60602999,0.00041369,120]
[381465111,1756223454955,-492.08,0.00041369,120]
[381465112,1756223454963,-480.0,0.00041369,120]
[381465113,1756223454972,-3144.45,0.00041369,120]
[381465114,1756223454982,-480.0,0.00041369,120]
[381465115,1756223454991,-480.0,0.00041369,120]
[381465116,1756223455002,-480.0,0.00041369,120]
[381465117,1756223455011,-480.0,0.00041369,120]
[381465118,1756223455020,-480.0,0.00041369,120]
[381465119,1756223455030,-532.94,0.00041369,120]
[381465120,1756223455039,-486.55,0.00041369,120]
[381465121,1756223455048,-480.0,0.00041369,120]
[381465122,1756223455058,-1336.4,0.00041369,120]
[381465123,1756223455066,-480.0,0.00041369,120]
[381465124,1756223455076,-480.0,0.00041369,120]
[381465125,1756223455085,-151.0,0.00041369,120]
[381465126,1756223455095,-480.0,0.00041369,120]
[381465127,1756223455104,-480.0,0.00041369,120]
[381465128,1756223455113,-480.0,0.00041369,120]
[381465129,1756223455122,-860.29,0.00041369,120]
[381465130,1756223455131,-480.0,0.00041369,120]
[381465131,1756223455140,-1450.82,0.00041369,120]
[381465133,1756223455149,-480.0,0.00041369,120]
[381465134,1756223455159,-480.0,0.00041369,120]
[381465136,1756223455168,-615.74,0.00041369,120]
[381465138,1756223455177,-480.0,0.00041369,120]
[381465140,1756223455187,-480.0,0.00041369,120]
[381465142,1756223455196,-534.46,0.00041369,120]
[381465144,1756223455205,-480.0,0.00041369,120]
[381465146,1756223455215,-480.0,0.00041369,120]
[381465148,1756223455224,-1742.21,0.00041369,120]
[381465150,1756223455233,-1280.55,0.00041369,120]
[381465152,1756223455243,-527.49,0.00041369,120]
[381465154,1756223455252,-480.0,0.00041369,120]
[381465156,1756223455261,-480.0,0.00041369,120]
[381465158,1756223455271,-1419.06,0.00041369,120]
[381465160,1756223455280,-1121.69,0.00041369,120]
[381465162,1756223455290,-640.47,0.00041369,120]
[381465164,1756223455299,-480.0,0.00041369,120]
[381465166,1756223455308,-480.0,0.00041369,120]
[381465168,1756223455319,-480.0,0.00041369,120]
[381465170,1756223455328,-589.08,0.00041369,120]
[381465172,1756223455337,-1362.51,0.00041369,120]
[381465174,1756223455346,-712.89,0.00041369,120]
[381465176,1756223455356,-480.0,0.00041369,120]
[381465178,1756223455368,-480.0,0.00041369,120]
[381465180,1756223455377,-480.0,0.00041369,120]
[381465182,1756223455386,-257.06785177,0.00041369,120]
[381465184,1756223455395,-480.0,0.00041369,120]
[381465186,1756223455406,-686.29,0.00041369,120]
[381465188,1756223455418,-553.04,0.00041369,14]
[381465190,1756223455428,-480.0,0.00041369,120]
[381465192,1756223455437,-480.0,0.00041369,120]
[381465194,1756223455446,-480.0,0.00041369,120]
[381465196,1756223455456,-480.0,0.00041369,120]
[381465198,1756223455466,-889.08,0.00041369,120]
[381465200,1756223455476,-480.0,0.00041369,120]
[381465202,1756223455486,-480.0,0.00041369,120]
[381465204,1756223455496,-480.0,0.00041369,120]
[381465206,1756223455507,-1743.7,0.00041369,120]
[381465208,1756223455517,-480.0,0.00041369,120]
[381465210,1756223455527,-5159.49,0.00041369,120]
[381465213,1756223455539,-480.0,0.00041369,120]
[381465215,1756223455549,-2178.69,0.00041369,120]
[381465217,1756223455558,-480.0,0.00041369,120]
[381465219,1756223455568,-480.0,0.00041369,120]
[381465221,1756223455578,-151.0,0.00041369,120]
[381465223,1756223455588,-480.0,0.00041369,120]
[381465225,1756223455599,-480.0,0.00041369,120]
[381465227,1756223455609,-480.0,0.00041369,120]
[381465229,1756223455619,-480.0,0.00041369,120]
[381465231,1756223455629,-708.13,0.00041369,120]
[381465233,1756223455639,-480.0,0.00041369,120]
[381465235,1756223455649,-480.0,0.00041369,120]
[381465237,1756223455659,-573.78,0.00041369,120]
[381465239,1756223455669,-480.0,0.00041369,120]
[381465241,1756223455679,-480.0,0.00041369,120]
[381465243,1756223455689,-480.0,0.00041369,120]
[381465245,1756223455700,-1702.95,0.00041369,30]
[381465247,1756223455710,-480.0,0.00041369,120]
[381465249,1756223455721,-151.0,0.00041369,120]
[381465251,1756223455732,-480.0,0.00041369,120]
[381465253,1756223455746,-480.0,0.00041369,120]
[381465255,1756223455757,-853.06,0.00041369,120]
[381465257,1756223455768,-151.0,0.00041369,30]
[381465259,1756223455778,-562.46,0.00041369,120]
[381465262,1756223455790,-480.0,0.00041369,120]
[381465264,1756223455800,-488.33,0.00041369,120]
[381465266,1756223455809,-480.0,0.00041369,120]
[381465268,1756223455820,-480.0,0.00041369,120]
[381465270,1756223455831,-480.0,0.00041369,120]
[381465272,1756223455841,-480.0,0.00041369,120]
[381465274,1756223455851,-480.0,0.00041369,120]
[381465276,1756223455861,-1220.54,0.00041369,120]
[381465278,1756223455871,-480.0,0.00041369,120]
[381465280,1756223455881,-657.55,0.00041369,120]
[381465282,1756223455891,-480.0,0.00041369,120]
[381465284,1756223455901,-151.0,0.00041369,120]
[381465286,1756223455911,-480.0,0.00041369,120]
[381465288,1756223455922,-480.0,0.00041369,7]
[381465290,1756223455932,-849.47,0.00041369,120]
[381465292,1756223455942,-151.0,0.00041369,120]
[381465294,1756223455952,-685.15,0.00041369,120]
[381465296,1756223455962,-480.0,0.00041369,120]
[381465298,1756223455972,-480.0,0.00041369,120]
[381465300,1756223455981,-480.0,0.00041369,120]
[381465303,1756223455992,-480.0,0.00041369,120]
[381465305,1756223456001,-623.90992791,0.00041369,120]
[381465307,1756223456012,-595.86,0.00041369,120]
[381465309,1756223456022,-480.04,0.00041369,120]
[381465311,1756223456032,-591.47,0.00041369,120]
[381465313,1756223456043,-652.94,0.00041369,120]
[381465315,1756223456053,-545.94,0.00041369,120]
[381465317,1756223456064,-482.53,0.00041369,120]
[381465319,1756223456074,-480.0,0.00041369,120]
[381465321,1756223456084,-480.0,0.00041369,120]
[381465323,1756223456094,-480.0,0.00041369,120]
[381465325,1756223456105,-807.18,0.00041369,120]
[381465327,1756223456116,-734.22,0.00041369,120]
[381465330,1756223456129,-480.0,0.00041369,120]
[381465332,1756223456140,-480.0,0.00041369,120]
[381465334,1756223456150,-480.0,0.00041369,120]
[381465336,1756223456160,-480.0,0.00041369,120]
[381465338,1756223456170,-1185.41,0.00041369,120]
[381465340,1756223456180,-480.0,0.00041369,120]
[381465342,1756223456190,-742.85,0.00041369,120]
[381465344,1756223456200,-480.0,0.00041369,120]
[381465346,1756223456211,-151.0,0.00041369,120]
[381465348,1756223456221,-6368.35,0.00041369,120]
[381465351,1756223456231,-480.0,0.00041369,120]
[381465353,1756223456242,-1649.85,0.00041369,120]
[381465355,1756223456253,-695.46,0.00041369,120]
[381465357,1756223456263,-480.0,0.00041369,120]
[381465359,1756223456273,-480.0,0.00041369,120]
[381465361,1756223456284,-480.0,0.00041369,120]
[381465363,1756223456294,-480.0,0.00041369,120]
[381465365,1756223456304,-480.0,0.00041369,120]
[381465367,1756223456315,-480.0,0.00041369,120]
[381465369,1756223456325,-640.25,0.00041369,120]
[381465371,1756223456337,-589.09,0.00041369,120]
[381465374,1756223456347,-7535.58,0.00041369,120]
[381465376,1756223456358,-234.26,0.00041369,120]
[381465378,1756223456368,-480.0,0.00041369,120]
[381465380,1756223456379,-480.0,0.00041369,120]
[381465382,1756223456389,-480.0,0.00041369,120]
[381465384,1756223456400,-480.0,0.00041369,120]
[381465386,1756223456410,-480.0,0.00041369,120]
[381465388,1756223456421,-151.0,0.00041369,120]
[381465390,1756223456432,-480.0,0.00041369,120]
[381465392,1756223456442,-3265.22,0.00041369,120]
[381465394,1756223456453,-8358.4,0.00041369,120]
[381465396,1756223456463,-466.66259869,0.00041369,120]
[381465398,1756223456474,-1296.89,0.00041369,120]
[381465401,1756223456484,-993.27,0.00041369,120]
[381465403,1756223456494,-480.0,0.00041369,120]
[381465405,1756223456504,-1240.25,0.00041369,120]
[381465407,1756223456514,-480.0,0.00041369,120]
[381465409,1756223456524,-805.33,0.00041369,120]
[381465411,1756223456534,-480.0,0.00041369,120]
[381465413,1756223456545,-480.0,0.00041369,120]
[381465415,1756223456555,-480.0,0.00041369,120]
[381465417,1756223456565,-1212.11,0.00041369,120]
[381465419,1756223456574,-480.0,0.00041369,120]
[381465421,1756223456585,-713.83,0.00041369,120]
[381465423,1756223456595,-151.0,0.00041369,120]
[381465425,1756223456605,-480.0,0.00041369,120]
[381465427,1756223456616,-480.0,0.00041369,120]
[381465429,1756223456626,-539.95,0.00041369,120]
[381465431,1756223456636,-489.4,0.00041369,120]
[381465434,1756223456651,-1206.68,0.00041369,120]
[381465436,1756223456660,-480.0,0.00041369,120]
[381465438,1756223456671,-151.0,0.00041369,90]
[381465440,1756223456683,-666.78,0.00041369,120]
[381465442,1756223456693,-480.0,0.00041369,120]
[381465445,1756223456708,-151.0,0.00041369,90]
[381465447,1756223456721,-480.0,0.00041369,120]
[381465449,1756223456734,-151.0,0.00041369,90]
[381465451,1756223456749,-480.0,0.00041369,120]
[381465454,1756223456762,-191.11641776,0.00041369,120]
[381465456,1756223456775,-480.0,0.00041369,120]
[381465459,1756223456789,-480.0,0.00041369,120]
[381465461,1756223456803,-480.0,0.00041369,120]
[381465463,1756223456817,-480.0,0.00041369,120]
[381465466,1756223456831,-480.0,0.00041369,120]
[381465468,1756223456845,-480.0,0.00041369,120]
[381465470,1756223456857,-613.0,0.00041369,120]
[381465473,1756223456870,-480.0,0.00041369,120]
[381465475,1756223456882,-480.0,0.00041369,120]
[381465477,1756223456894,-4903.48,0.00041369,120]
[381465480,1756223456908,-480.0,0.00041369,120]
[381465482,1756223456921,-480.0,0.00041369,120]
[381465484,1756223456933,-2716.17,0.00041369,120]
[381465487,1756223456944,-480.0,0.00041369,120]
[381465489,1756223456957,-480.0,0.00041369,120]
[381465491,1756223456968,-480.0,0.00041369,120]
[381465494,1756223456981,-151.0,0.00041369,120]
[381465496,1756223456995,-566.76,0.00041369,120]
[381465498,1756223457008,-480.0,0.00041369,120]
[381465501,1756223457023,-839.1,0.00041369,120]
[381465503,1756223457037,-480.0,0.00041369,120]
[381465506,1756223457050,-151.0,0.00041369,120]
[381465508,1756223457060,-1131.55,0.00041369,120]
[381465510,1756223457071,-1021.01,0.00041369,120]
[381465512,1756223457083,-151.0,0.00041369,120]
[381465515,1756223457097,-480.0,0.00041369,120]
[381465517,1756223457110,-508.62,0.00041369,120]
[381465519,1756223457121,-151.0,0.00041369,120]
[381465521,1756223457132,-480.0,0.00041369,120]
[381465524,1756223457144,-480.0,0.00041369,120]
[381465526,1756223457159,-1062.25,0.00041369,120]
[381465528,1756223457171,-151.0,0.00041369,120]
[381465530,1756223457181,-480.0,0.00041369,120]
[381465532,1756223457192,-768.46,0.00041369,120]
[381465535,1756223457204,-480.0,0.00041369,120]
[381465537,1756223457215,-480.0,0.00041369,120]
[381465539,1756223457227,-480.0,0.00041369,120]
[381465541,1756223457239,-151.0,0.00041369,120]
[381465543,1756223457251,-480.0,0.00041369,120]
[381465546,1756223457263,-1078.55,0.00041369,120]
[381465548,1756223457274,-480.0,0.00041369,120]
[381465550,1756223457285,-151.0,0.00041369,120]
[381465552,1756223457298,-480.0,0.00041369,120]
[381465555,1756223457311,-578.36,0.00041369,120]
[381465557,1756223457324,-480.0,0.00041369,120]
[381465560,1756223457336,-608.96,0.00041369,120]
[381465562,1756223457347,-480.0,0.00041369,90]
[381465564,1756223457358,-817.61,0.00041369,120]
[381465566,1756223457369,-480.0,0.00041369,120]
[381465568,1756223457382,-480.0,0.00041369,120]
[381465571,1756223457394,-480.0,0.00041369,120]
[381465573,1756223457405,-1983.36,0.00041369,120]
[381465575,1756223457417,-579.89,0.00041369,120]
[381465577,1756223457428,-480.0,0.00041369,120]
[381465578,1756223457440,-480.0,0.00041369,120]
[381465579,1756223457450,-1514.47,0.00041369,120]
[381465580,1756223457462,-8264.81,0.00041369,120]
[381465581,1756223457473,-518.6,0.00041369,120]
[381465582,1756223457484,-480.0,0.00041369,120]
[381465583,1756223457496,-703.77,0.00041369,120]
[381465584,1756223457508,-1057.89,0.00041369,120]
[381465585,1756223457519,-665.83,0.00041369,120]
[381465586,1756223457532,-1517.23,0.00041369,120]
[381465587,1756223457543,-3109.14,0.00041369,21]
[381465588,1756223457555,-1363.12,0.00041369,120]
[381465590,1756223457566,-480.0,0.00041369,120]
[381465592,1756223457578,-480.0,0.00041369,120]
[381465595,1756223457589,-817.02,0.00041369,120]
[381465597,1756223457601,-480.0,0.00041369,120]
[381465599,1756223457612,-778.27,0.00041369,120]
[381465601,1756223457624,-980.15,0.00041369,120]
[381465603,1756223457635,-1142.52,0.00041369,120]
[381465606,1756223457647,-480.0,0.00041369,120]
[381465608,1756223457659,-1442.01,0.00041369,120]
[381465610,1756223457670,-250.24894907,0.00041369,120]
[381465615,1756223457702,-229.75105093,0.00041369,120]
[381465617,1756223457714,-1638.98,0.00041369,120]
[381465619,1756223457726,-6081.75,0.00041369,120]
[381465621,1756223457740,-480.0,0.00041369,120]
[381465624,1756223457754,-4413.0,0.00041369,120]
[381465626,1756223457766,-1019.55,0.00041369,120]
[381465628,1756223457777,-575.24,0.00041369,120]
[381465630,1756223457790,-774.02,0.00041369,120]
[381465632,1756223457802,-615.81,0.00041369,120]
[381465635,1756223457814,-480.0,0.00041369,120]
[381465637,1756223457827,-623.82,0.00041369,120]
[381465639,1756223457842,-603.4,0.00041369,120]
[381465642,1756223457854,-480.0,0.00041369,120]
[381465644,1756223457866,-480.0,0.00041369,120]
[381465646,1756223457880,-1133.49,0.00041369,30]
[381465648,1756223457892,-480.0,0.00041369,120]
[381465651,1756223457903,-480.0,0.00041369,120]
[381465653,1756223457914,-151.0,0.00041369,120]
[381465655,1756223457927,-523.83,0.00041369,120]
[381465657,1756223457939,-151.0,0.00041369,120]
[381465660,1756223457952,-1984.9,0.00041369,120]
[381465662,1756223457964,-480.0,0.00041369,120]
[381465664,1756223457976,-2251.6,0.00041369,120]
[381465666,1756223457988,-906.82,0.00041369,120]
[381465668,1756223458000,-518.48,0.00041369,120]
[381465671,1756223458011,-480.0,0.00041369,120]
[381465673,1756223458023,-480.0,0.00041369,120]
[381465675,1756223458036,-265.35772828,0.00041369,120]
[381465677,1756223458047,-996.78,0.00041369,120]
[381465680,1756223458059,-572.27,0.00041369,120]
[381465682,1756223458072,-480.0,0.00041369,120]
[381465684,1756223458084,-480.0,0.00041369,120]
[381465686,1756223458096,-480.0,0.00041369,120]
[381465689,1756223458108,-480.0,0.00041369,120]
[381465691,1756223458120,-571.95,0.00041369,120]
[381465693,1756223458132,-480.0,0.00041369,120]
[381465696,1756223458145,-480.0,0.00041369,120]
[381465698,1756223458157,-480.0,0.00041369,120]
[381465700,1756223458169,-586.81,0.00041369,120]
[381465702,1756223458181,-514.51,0.00041369,120]
[381465704,1756223458192,-480.0,0.00041369,120]
[381465707,1756223458204,-5183.87,0.00041369,120]
[381465709,1756223458215,-517.9,0.00041369,120]
[381465711,1756223458225,-2134.16,0.00041369,120]
[381465713,1756223458237,-236.91069994,0.00041369,120]
[381465715,1756223458248,-480.0,0.00041369,120]
[381465717,1756223458259,-480.0,0.00041369,120]
[381465720,1756223458273,-2516.35,0.00041369,120]
[381465722,1756223458285,-480.0,0.00041369,120]
[381465724,1756223458296,-1097.86,0.00041369,120]
[381465726,1756223458307,-480.0,0.00041369,120]
[381465729,1756223458319,-480.0,0.00041369,120]
[381465731,1756223458330,-1638.61,0.00041369,120]
[381465733,1756223458341,-480.0,0.00041369,120]
[381465735,1756223458352,-480.0,0.00041369,120]
[381465737,1756223458363,-480.0,0.00041369,7]
[381465739,1756223458372,-2661.69,0.00041369,120]
[381465741,1756223458382,-480.0,0.00041369,120]
[381465743,1756223458391,-1311.5,0.00041369,120]
[381465745,1756223458401,-908.05,0.00041369,120]
[381465747,1756223458411,-505.45,0.00041369,120]
[381465749,1756223458420,-2941.75,0.00041369,120]
[381465751,1756223458430,-678.83,0.00041369,120]
[381465753,1756223458439,-480.0,0.00041369,120]
[381465755,1756223458448,-480.0,0.00041369,120]
[381465757,1756223458458,-497.78,0.00041369,120]
[381465759,1756223458467,-480.0,0.00041369,120]
[381465762,1756223458476,-480.0,0.00041369,120]
[381465764,1756223458486,-480.0,0.00041369,120]
[381465766,1756223458495,-1697.42,0.00041369,120]
[381465768,1756223458504,-480.0,0.00041369,120]
[381465770,1756223458515,-2276.17,0.00041369,120]
[381465772,1756223458525,-914.08938044,0.00041369,3]
[381465847,1756223459224,-151.0,0.000389,30]
[381465849,1756223459234,-6364.45061956,0.00041369,3]
[381465852,1756223459244,-480.0,0.00041369,120]
[381465853,1756223459254,-480.0,0.00041369,120]
[381465856,1756223459265,-480.0,0.00041369,120]
[381465858,1756223459274,-480.0,0.00041369,120]
[381465860,1756223459283,-2540.02,0.00041369,120]
[381465862,1756223459293,-480.0,0.00041369,2]